[Event "8th Fischer Heraklion-GM 2022"]
[Site "Heraklion"]
[Date "2022.04.30"]
[Round "6.3"]
[White "Mitsis, Georgios"]
[Black "Vaishali R"]
[Result "0-1"]
[ECO "E01"]
[WhiteElo "2344"]
[BlackElo "2411"]
[Annotator "TA"]
[PlyCount "84"]
[EventDate "2022.04.18"]
[EventType "tourn"]
[EventCountry "GRE"]
[SourceTitle "playchess.com"]
[Source "ChessBase"]
[SourceQuality "1"]
[TimeControl "40/5400+30:1800+30"]

{[%evp 9,84,0,30,6,13,6,8,0,3,-43,-30,-69,-58,-57,14,9,16,0,0,0,14,-38,-37,-37,-44,-39,-36,-40,-43,-41,-29,-84,-89,-79,-86,-84,-88,-101,-81,-104,-79,-158,-150,-159,-120,-150,-100,-122,-127,-276,-291,-383,-383,-425,-352,-496,-493,-483,-452,-418,-335,-472,-345,-606,-334,-2401,-2220,-1310,-1043,-2802,-1916,-6732,-745,-29974,0,-29985,-2113]} 1. d4 {[%emt 0:00:04]} Nf6 {[%emt 0:01:16]} 2. c4 {[%emt 0:00:26]} e6 {[%emt 0:00:12]} 3. Nf3 {[%emt 0:00:28]} d5 {[%emt 0:00:09]} 4. g3 {[%emt 0:00:15]} Bb4+ {[%emt 0:00:26]} 5. Bd2 {[%emt 0:00:24]} Bd6 {[%emt 0:00:52]} 6. Nc3 {[%emt 0:02:00] E01: Catalan: Early deviations.} O-O {[%emt 0:00:26] The main line 6...0-0 scores better than 6...c6.} 7. Bg2 {[%emt 0:01:27]} dxc4 {[%emt 0:05:08]} 8. e4 {[%emt 0:03:44] The position is equal.} Be7 {[%emt 0:00:37] [#]} 9. e5 $146 {[%emt 0:05:26]} (9. Qe2 $11 {feels stronger.}) ({Predecessor:} 9. Qe2 a6 10. Qxc4 b5 11. Qe2 b4 12. Na4 Bd7 13. b3 Bb5 14. Qe3 Nbd7 15. Bf1 {0-1 (28) Kazakovskiy,V (2420)-Wojtaszek,R (2737) Antalya 2017}) 9... Nd5 $15 {[%emt 0:01:23]} 10. Ne4 {[%emt 0:02:22]} Nc6 {[%emt 0:06:24]} 11. O-O {[%emt 0:04:04]} f5 {[%emt 0:26:30]} (11... b5 $15) 12. exf6 $1 $11 {[%emt 0:02:41]} Nxf6 {[%emt 0:00:49]} 13. Nxf6+ {[%emt 0:17:46]} Bxf6 {[%emt 0:00:07]} 14. Bc3 {[%emt 0:00:07]} Qd6 {[%emt 0:07:39]} 15. Qa4 {[%emt 0:09:27]} ({White should play} 15. Nd2 $11) 15... Rb8 $1 $15 {[%emt 0:01:56] Hoping for ...b5.} (15... Bxd4 16. Nxd4 Nxd4 17. Qxc4 $16) 16. Qxc4 {[%emt 0:03:15][%cal Of3e5]} b5 $1 {[%emt 0:00:20][%cal Bb7b5,Bb5b4][%mdl 32]} 17. Qb3 {[%emt 0:00:19][%cal Of3e5]} b4 $1 $36 {[%emt 0:12:17][%mdl 2048] Black is more active.} (17... Bxd4 $2 18. Rad1 b4 19. Bxd4 $18 (19. Rxd4 Nxd4 20. Bxd4 Bb7 $16)) 18. Bd2 {[%emt 0:00:28]} Nxd4 {[%emt 0:09:05]} 19. Nxd4 {[%emt 0:00:51]} Bxd4 {[%emt 0:02:46]} 20. Bf4 {[%emt 0:01:35]} (20. Be3 $1 $11 {remains equal.}) 20... Rxf4 $17 {[%emt 0:01:32] Black keeps a firm grip on the game.} 21. gxf4 {[%emt 0:00:08]} Qxf4 {[%emt 0:00:08]} (21... Ba6 22. Rfe1 Bc8 23. f5 $16) 22. Rad1 {[%emt 0:11:09]} c5 {[%emt 0:03:02]} 23. Qa4 {[%emt 0:01:10]} Qf7 {[%emt 0:08:16]} ({But not} 23... Bb7 $6 24. Bxb7 Rxb7 25. Qe8+ Qf8 26. Qxe6+ Kh8 27. b3 $11) 24. Rd3 {[%emt 0:15:29]} Rb6 {[%emt 0:04:56]} 25. Rf3 {[%emt 0:03:24]} (25. a3 $142) 25... Qe7 {[%emt 0:00:12]} 26. Qc2 {[%emt 0:00:53]} e5 {[%emt 0:01:19]} 27. Rg3 {[%emt 0:01:18]} Rf6 {[%emt 0:01:03] Active counter play!} (27... g6 $142 28. Bd5+ Kg7) 28. Bd5+ {[%emt 0:01:57]} Kh8 {[%emt 0:00:06] Threatens to win with ...Ba6.} 29. b3 {[%emt 0:00:35]} (29. Rf3 $17 {was necessary.}) 29... Ba6 $19 {[%emt 0:01:35] This bishop pair is nice.} 30. Bc4 {[%emt 0:04:15]} ({Don't blunder} 30. Rh3 $2 h6 31. Bc4 Bb7 $19) 30... Bb7 {[%emt 0:00:13] Chess con chili.} 31. Qe2 {[%emt 0:01:58]} g6 {[%emt 0:02:48]} 32. Qg4 {[%emt 0:01:25]} (32. h3 $142) 32... Qf8 {[%emt 0:00:37][%cal Rf6f2]} 33. Rg2 {[%emt 0:02:38]} Rf4 {[%emt 0:00:51]} 34. Qg3 {[%emt 0:00:15]} Qf6 {[%emt 0:00:56] [#] aiming for ...Rf5.} 35. h3 {[%emt 0:00:23]} (35. Qg5 {was called for.}) 35... Kg7 {[%emt 0:00:44]} 36. Kh2 $2 {[%emt 0:02:05]} (36. Qg5) 36... h5 {[%emt 0:01:14]} 37. Rfg1 $2 {[%emt 0:01:33]} (37. Qg5) 37... Bxg2 {[%emt 0:00:27]} 38. Rxg2 {[%emt 0:00:06]} Bxf2 {[%emt 0:00:30]} 39. Qd3 {[%emt 0:00:29]} Bd4 {[%emt 0:00:35]} 40. Bd5 {[%emt 0:00:00] Prevents e4.} Rf2 {[%emt 0:00:00] ( -> ...h4)} 41. Qg3 {[%emt 0:03:51]} Rf4 $2 {[%emt 0:10:08]} (41... h4 {mates} 42. Qg4 e4 43. Bc4 Rf3 44. Qd7+ Kh6 45. Qg4 Rc3 46. Be2 Qd6+ 47. Kh1 Rc1+ 48. Bd1 Be3 49. Qxh4+ Kg7 50. Rxg6+ Qxg6 51. Qe7+ Qf7 52. Qe5+ Kf8 53. Qh8+ Ke7 54. Qh4+ Kd6 55. Qd8+ Qd7 56. Qxd7+ Kxd7 57. Kg2 Rxd1 58. Kg3 Rg1+ 59. Kh2 Bf2 60. h4 e3 61. a4 e2 62. h5 e1=Q 63. h6 Qe5+ 64. Kh3 Qh5#) 42. Re2 $2 {[%emt 0:04:42][%mdl 8192] [#]} (42. Qd3 $11 e4 43. Bxe4) 42... e4 {[%emt 0:03:18] Weighted Error Value: White=1.21/Black=0.61} (42... h4 $142 43. Qg2 Rf1 44. Qe4 Rf2+ 45. Rxf2 Qxf2+ 46. Qg2 Qf4+ 47. Kh1 Qc1+ 48. Kh2 e4 49. Qg4 Qd2+ 50. Kh1 Qe1+ 51. Kh2 Bf2 52. Qd7+ Kh6 53. Qg4 Bg3+ 54. Qxg3 hxg3+ 55. Kg2 Qf2+ 56. Kh1 Qh2#) 0-1

[Event "8th Fischer Heraklion-GM 2022"]
[Site "Heraklion"]
[Date "2022.04.30"]
[Round "6.4"]
[White "Szwed, Jacek"]
[Black "Kapnisis, Spyridon"]
[Result "0-1"]
[ECO "B55"]
[WhiteElo "2360"]
[BlackElo "2450"]
[Annotator "TA"]
[PlyCount "134"]
[EventDate "2022.04.18"]
[EventType "tourn"]
[EventCountry "GRE"]
[SourceTitle "playchess.com"]
[Source "ChessBase"]
[SourceQuality "1"]
[TimeControl "40/5400+30:1800+30"]

{[%evp 11,134,11,18,22,16,14,19,0,6,0,12,0,4,0,7,0,0,0,0,0,0,-50,-47,-47,-30,-51,-58,-66,-44,-60,-65,-59,-67,-189,-194,-239,-123,-124,-126,-141,-137,-137,-130,-315,-308,-293,-267,-331,-333,-319,-325,-297,-257,-326,-331,-330,-222,-224,-216,-216,-211,-211,-225,-225,-225,-225,-225,-225,-225,-225,-197,-216,-210,-202,-193,-217,-217,-238,0,-17,0,-238,-238,-239,-238,-229,-219,-444,-203,-260,-252,-444,-444,-444,-444,-444,-438,-436,-429,-429,-410,-537,-536,-527,-525,-514,-446,-511,-464,-819,-793,-771,-746,-956,-1241,-1211,-1066,-983,-1031,-1035,-1029,-994,-906,-983,-930]} 1. e4 {[%emt 0:01:43]} c5 {[%emt 0:01:20]} 2. Nf3 {[%emt 0:00:05]} d6 {[%emt 0:00:11]} 3. d4 {[%emt 0:05:58]} cxd4 {[%emt 0:02:28]} 4. Nxd4 {[%emt 0:00:18]} Nf6 {[%emt 0:00:11]} 5. f3 {[%emt 0:02:57]} e5 {[%emt 0:00:24]} 6. Nb3 {[%emt 0:00:05]} d5 {[%emt 0:00:09]} 7. Bg5 {[%emt 0:00:46] B55: Sicilian: 2...d6 3 d4 cxd4 4 Nxd4 Nf6 5 f3.} d4 {[%emt 0:06:12]} 8. c3 {[%emt 0:05:40][%cal Rc3d4]} Nc6 {[%emt 0:05:11]} 9. Bc4 {[%emt 0:34:27] The position is equal.} Be7 {[%emt 0:19:14]} 10. O-O {[%emt 0:00:33]} O-O {[%emt 0:00:38]} 11. Kh1 {[%emt 0:07:47] [#]} Qc7 $146 {[%emt 0:09:01]} ({Predecessor:} 11... Qb6 12. cxd4 exd4 13. N1d2 Rd8 14. Bxf6 Bxf6 15. f4 Be6 16. Bxe6 fxe6 17. e5 Be7 {1-0 (38) Vereb,G (2170)-Krstulovic,A (1795) Budapest 2012}) 12. Na3 {[%emt 0:10:53][%cal Rc3d4]} Rd8 {[%emt 0:13:32]} 13. cxd4 {[%emt 0:02:46]} exd4 {[%emt 0:01:32][%cal Be5d4,Bd4d3][%mdl 32]} 14. Bxf6 {[%emt 0:07:46]} Bxf6 {[%emt 0:02:20]} 15. f4 {[%emt 0:00:01]} d3 {[%emt 0:05:01]} 16. Qd2 {[%emt 0:04:25]} (16. Nb5 $11 Qb6 17. e5) 16... Bg4 $15 {[%emt 0:11:29]} 17. Nb5 {[%emt 0:05:11]} Qb6 {[%emt 0:00:45]} 18. e5 {[%emt 0:00:39]} Be7 {[%emt 0:01:01]} 19. Nc3 $1 {[%emt 0:01:11]} Bb4 {[%emt 0:04:10]} 20. Bxd3 {[%emt 0:01:08]} Nd4 $1 {[%emt 0:04:48] Inhibits Qc2.} 21. Nc1 {[%emt 0:01:19]} Nf5 $1 {[%emt 0:01:12][%mdl 1024] Inhibits Qe3. Black has compensation.} 22. Qe1 {[%emt 0:02:13]} (22. Qf2 $15) 22... Ne3 $1 $19 {[%emt 0:02:40]} 23. Qh4 {[%emt 0:01:14]} h5 {[%emt 0:02:10] Active counter play!} (23... Nxf1 24. Qxh7+ Kf8 25. Qh8+ Ke7 26. Qh4+ Kf8 27. Qh8+ Ke7 28. Qh4+ Kf8 29. Qh8+ $11) ({Black should try} 23... Bf5 $1 $19 {[%cal Rf5d3]} 24. Bxf5 Nxf5) 24. Rg1 $17 {[%emt 0:00:51]} Rac8 {[%emt 0:04:33]} 25. Qf2 {[%emt 0:02:09]} Bc5 $40 {[%emt 0:01:40][%cal Oe3d1][%mdl 128] White must now prevent ...Nd1! Black is out for blood.} 26. Na4 {[%emt 0:00:43]} Nd1 {[%emt 0:00:07][%mdl 64] Discovered Attack} 27. Rxd1 {[%emt 0:00:10]} (27. Qh4 $17 {was forced.} Nf2+ 28. Qxf2 Bxf2 29. Nxb6 Bxb6 30. Re1) 27... Bxf2 $19 {[%emt 0:01:05] This bishop pair is nice.} 28. Nxb6 {[%emt 0:00:01]} Bxb6 {[%emt 0:00:46]} (28... Bxd1 29. Nxc8 Rxc8 30. Ne2 Bxe2 31. Bxe2 $11) 29. Rf1 {[%emt 0:01:01] [#]} Rxc1 $1 {[%emt 0:00:36][%mdl 576] Remove Defender} 30. Raxc1 {[%emt 0:00:00] Hoping for Bc4.} Rxd3 {[%emt 0:00:05]} 31. f5 {[%emt 0:00:01]} Re3 {[%emt 0:00:52]} 32. h3 {[%emt 0:01:03]} Be2 {[%emt 0:00:03]} 33. Rfe1 {[%emt 0:00:00]} Kh7 {[%emt 0:00:58]} ({Weaker is} 33... Rxe5 34. Rc2 $16) 34. Rc2 {[%emt 0:00:19]} Bd3 {[%emt 0:00:25]} 35. Rxe3 {[%emt 0:00:01]} Bxc2 {[%emt 0:00:04]} ({Resist} 35... Bxe3 36. Rc3 Bxf5 37. Rxe3 $18) 36. Rf3 {[%emt 0:00:34]} Be4 {[%emt 0:00:39]} 37. Rf1 {[%emt 0:01:05]} Bd5 {[%emt 0:00:22] Inhibits e6.} 38. b3 {[%emt 0:00:15]} g6 {[%emt 0:00:55]} 39. Rd1 {[%emt 0:01:01]} Bc6 {[%emt 0:00:21]} 40. e6 {[%emt 0:00:00]} fxe6 {[%emt 0:00:00]} 41. fxe6 {[%emt 0:02:25]} Bc5 {[%emt 0:06:13]} 42. Rf1 {[%emt 0:02:25]} a5 {[%emt 0:07:21]} 43. Rf7+ {[%emt 0:10:59]} Kg8 {[%emt 0:01:29]} 44. Rf6 {[%emt 0:00:51] [#]} Kg7 {[%emt 0:00:39]} (44... Be8 $1 $19 {aiming for ...Kg7.} 45. Rf3 b6) 45. Rf7+ $11 {[%emt 0:00:04]} Kg8 $2 {[%emt 0:00:02]} (45... Kh6 $11) 46. Rf6 $1 $19 {[%emt 0:01:11] [#] White is now going downhill.} Be8 $1 {[%emt 0:00:10]} 47. Rf4 {[%emt 0:03:56]} Kg7 {[%emt 0:00:50]} 48. h4 {[%emt 0:06:31]} Be7 {[%emt 0:05:55]} 49. g3 $2 {[%emt 0:01:24]} (49. Kg1 {was called for.}) 49... Bf6 {[%emt 0:00:33]} (49... Bd6 $142 50. Rc4 Bxg3) 50. Kg2 {[%emt 0:01:35]} Bc6+ {[%emt 0:00:19]} 51. Kh3 $2 {[%emt 0:00:25]} (51. Kf1) 51... Bd5 {[%emt 0:00:15]} 52. Kh2 {[%emt 0:03:19]} Bxe6 {[%emt 0:00:25]} 53. Rf2 {[%emt 0:00:01]} Kf7 {[%emt 0:00:50]} 54. Rc2 {[%emt 0:00:12]} Bd8 {[%emt 0:01:15] Inhibits Rc7+.} 55. Rc5 {[%emt 0:00:56]} Ke7 {[%emt 0:00:42]} 56. Rb5 {[%emt 0:01:14]} b6 {[%emt 0:00:26][%cal Bb7b6,Bb6b5,Bb5a4][%mdl 32] Black is clearly winning.} 57. Re5 {[%emt 0:00:35]} Kd6 {[%emt 0:00:31]} 58. Re2 {[%emt 0:00:01]} Bf6 {[%emt 0:00:30]} 59. Rc2 {[%emt 0:00:44]} b5 {[%emt 0:00:59]} 60. Kg2 {[%emt 0:01:06]} (60. Rg2 $142 Bd5 61. Rd2) 60... Bd5+ {[%emt 0:00:46]} 61. Kf2 {[%emt 0:00:34]} a4 {[%emt 0:00:17]} 62. bxa4 {[%emt 0:00:26]} bxa4 {[%emt 0:00:05]} 63. a3 {[%emt 0:00:23]} Bd4+ {[%emt 0:00:56]} 64. Ke2 {[%emt 0:00:17]} Bc5 {[%emt 0:00:24]} 65. Rc1 {[%emt 0:00:23]} Bb3 {[%emt 0:00:41]} ({Avoid the trap} 65... Bxa3 $2 66. Ra1 Bc5 67. Rxa4 $19) 66. Ra1 {[%emt 0:00:06]} Ke5 {[%emt 0:00:21]} 67. Kd3 {[%emt 0:00:20]} Bf2 {[%emt 0:00:26] Weighted Error Value: White=0.28 (precise) /Black=0.20 (precise)} 0-1

[Event "8th Fischer Heraklion-GM 2022"]
[Site "Heraklion"]
[Date "2022.04.30"]
[Round "6.5"]
[White "Nikolaidis, Ioannis"]
[Black "Materia, Marco"]
[Result "1/2-1/2"]
[ECO "B48"]
[WhiteElo "2536"]
[BlackElo "2398"]
[Annotator "TA"]
[PlyCount "125"]
[EventDate "2022.04.18"]
[EventType "tourn"]
[EventCountry "GRE"]
[SourceTitle "playchess.com"]
[Source "ChessBase"]
[SourceQuality "1"]
[TimeControl "40/5400+30:1800+30"]

{[%evp 11,125,37,45,15,31,51,37,49,52,25,38,-59,-58,-67,-60,-64,-61,-107,-107,-123,-126,-125,-118,-112,-127,-126,-121,-119,-94,-107,-68,-114,-112,-122,-94,-123,0,0,0,-131,-119,-123,-15,-15,-15,-15,-15,-15,-15,-20,-15,-37,-31,-34,-31,-31,-31,-33,-15,-35,-35,-56,-8,-8,-8,-35,-37,-71,-34,-39,-41,-130,0,0,0,0,0,0,0,0,0,0,0,0,0,0,0,0,0,0,0,0,0,0,0,0,0,0,0,0,0,0,0,0,0,0,0,0,0,0,0,0,0,0,0,0]} 1. e4 {[%emt 0:01:24]} c5 {[%emt 0:00:03]} 2. Nf3 {[%emt 0:00:19]} e6 {[%emt 0:00:05]} 3. d4 {[%emt 0:00:30]} cxd4 {[%emt 0:00:02]} 4. Nxd4 {[%emt 0:00:08]} Nc6 {[%emt 0:00:02]} 5. Nc3 {[%emt 0:00:15]} Qc7 {[%emt 0:00:01]} 6. Be3 {[%emt 0:00:59]} a6 {[%emt 0:00:06]} 7. Qf3 {[%emt 0:00:50] 7.g4 is becoming the main line. B48: Sicilian: Taimanov: 5 Nc3 Qc7 6 Be3 a6 without Be2.} Ne5 {[%emt 0:00:07][%cal Bc6e5,Be5g4,Bg4e3][%mdl 32]} (7... Ba3 {feels hotter.} 8. O-O-O Ne5 9. Qg3 Qxc3 10. bxa3 Ng6) 8. Qg3 {[%emt 0:00:24]} b5 {[%emt 0:00:36]} 9. O-O-O {[%emt 0:07:44] White is slightly better.} Nf6 {[%emt 0:00:27] Threatens to win with ...b4.} 10. f4 {[%emt 0:04:19]} Neg4 {[%emt 0:01:01]} 11. e5 {[%emt 0:06:27]} ({White should play} 11. Bg1 $14) 11... Nxe3 $15 {[%emt 0:02:45]} 12. Qxe3 {[%emt 0:03:55] [#]} b4 $1 {[%emt 0:00:09]} 13. Ncb5 {[%emt 0:09:46]} axb5 {[%emt 0:04:35] [#]} 14. exf6 $146 {[%emt 0:00:05]} (14. Nxb5 $15 Qc6 15. exf6 gxf6 16. Qd4) ({Predecessor:} 14. Nxb5 Qc6 15. exf6 gxf6 16. Kb1 Bc5 17. Qg3 Kf8 18. f5 d5 19. fxe6 Bxe6 20. Nd4 {0-1 (52) Mihok,O (2532)-Pichot,A (2577) Chess.com INT 2017}) 14... Rxa2 $17 {[%emt 0:15:53]} 15. Bxb5 {[%emt 0:09:34]} Ra1+ {[%emt 0:09:01]} ({Worse is} 15... gxf6 16. Nb3 $15) 16. Kd2 {[%emt 0:00:07]} Rxd1+ {[%emt 0:00:13]} 17. Rxd1 {[%emt 0:12:04]} gxf6 {[%emt 0:02:43]} 18. Nb3 {[%emt 0:08:03] Prevents Bc5.} Qb8 {[%emt 0:11:20]} 19. Be2 {[%emt 0:03:06]} Bd6 {[%emt 0:08:42]} 20. g3 {[%emt 0:00:24]} Bc7 {[%emt 0:02:21]} 21. Kc1 {[%emt 0:04:43]} (21. Qd4 $15 {might be stronger.}) 21... Qb6 {[%emt 0:02:08]} 22. Qd2 {[%emt 0:09:00]} f5 {[%emt 0:05:50]} 23. Nd4 {[%emt 0:05:28]} Qa5 {[%emt 0:00:55][%cal Ra5a1]} 24. Nb3 {[%emt 0:00:59] Against Qa1+} Qb6 {[%emt 0:00:13]} 25. Nd4 $1 {[%emt 0:00:03]} O-O {[%emt 0:02:06]} 26. Nb5 {[%emt 0:01:16] [#]} b3 {[%emt 0:01:35]} (26... Bd8 $1 $17 {And now ...Bf6 would win.} 27. Qd4 d5 28. Qxb6 Bxb6) 27. Nxc7 $11 {[%emt 0:07:23]} Qxc7 {[%emt 0:00:04]} 28. Qc3 {[%emt 0:00:08]} Qxc3 {[%emt 0:01:18]} 29. bxc3 {[%emt 0:00:02]} bxc2 {[%emt 0:00:09][%mdl 4096] Endgame KRB-KRB} 30. Rd6 {[%emt 0:00:25]} Rd8 {[%emt 0:02:49]} 31. Bb5 {[%emt 0:01:40]} Kf8 {[%emt 0:01:42]} 32. c4 {[%emt 0:00:03]} Ke7 {[%emt 0:00:11]} 33. c5 {[%emt 0:00:04]} Rg8 {[%emt 0:04:18]} 34. Kxc2 {[%emt 0:00:53]} h5 {[%emt 0:02:16][%cal Oh5h4]} 35. Kc3 {[%emt 0:02:48]} h4 {[%emt 0:00:24]} 36. Rd3 {[%emt 0:00:03]} ({Much worse is} 36. gxh4 Rh8 37. h5 Rxh5 $17) 36... Rh8 {[%emt 0:01:00]} (36... Rg4 $15 {deserves consideration.}) 37. Kb4 $1 {[%emt 0:01:09]} hxg3 {[%emt 0:01:53]} 38. hxg3 {[%emt 0:00:03]} Rd8 {[%emt 0:01:49]} 39. Rd6 {[%emt 0:01:18]} Bb7 {[%emt 0:01:08]} (39... Rg8 $5 {[%cal Rg8g3]}) 40. Rb6 {[%emt 0:00:00]} Bf3 {[%emt 0:00:00]} 41. Kc3 {[%emt 0:12:27]} (41. Rd6 $15) 41... Rg8 {[%emt 0:20:07]} ({Better is} 41... Rc8 $17 42. Kd4 Bc6 43. Bxc6 Rxc6) 42. Rd6 {[%emt 0:00:37] The position is equal.} Bc6 {[%emt 0:01:18]} 43. Bxc6 {[%emt 0:00:10]} Rxg3+ {[%emt 0:00:04]} 44. Kb4 {[%emt 0:04:06]} dxc6 {[%emt 0:00:13]} 45. Rxc6 {[%emt 0:00:02] KR-KR} Kd7 {[%emt 0:04:46]} 46. Ra6 {[%emt 0:02:32]} Kc7 {[%emt 0:00:55]} 47. Ra7+ {[%emt 0:01:53]} Kc6 {[%emt 0:00:05]} 48. Ra6+ {[%emt 0:00:05]} Kb7 {[%emt 0:00:12]} 49. Rd6 {[%emt 0:00:19]} Kc7 {[%emt 0:00:37]} 50. Ra6 {[%emt 0:00:43]} Rf3 {[%emt 0:00:14]} 51. Kb5 {[%emt 0:00:40]} Rb3+ {[%emt 0:00:03]} 52. Kc4 {[%emt 0:00:02]} Rb1 {[%emt 0:00:13]} 53. Ra7+ {[%emt 0:00:17]} Kc6 {[%emt 0:00:05]} 54. Ra6+ {[%emt 0:00:05]} Kb7 {[%emt 0:00:26]} 55. Rd6 {[%emt 0:00:03]} Rf1 {[%emt 0:01:09]} 56. Kb5 {[%emt 0:02:20]} Kc7 {[%emt 0:00:21]} 57. Ra6 {[%emt 0:00:10]} Rb1+ {[%emt 0:04:36]} 58. Kc4 {[%emt 0:00:11]} Rb7 {[%emt 0:00:09]} 59. Ra8 {[%emt 0:00:13]} Kd7 {[%emt 0:04:19]} 60. Ra6 {[%emt 0:01:55] White wants to mate with c6+.} Kc7 {[%emt 0:01:09]} 61. Ra8 {[%emt 0:00:09]} Kd7 {[%emt 0:00:06]} 62. Ra6 {[%emt 0:00:02] Threatening mate with c6+.} Kc7 {[%emt 0:00:06]} 63. Ra8 {[%emt 0:00:05] Weighted Error Value: White=0.10 (very precise) /Black=0.12 (very precise)} 1/2-1/2

[Event "8th Fischer Heraklion-GM 2022"]
[Site "Heraklion"]
[Date "2022.05.02"]
[Round "7.1"]
[White "Materia, Marco"]
[Black "Korneev, Oleg"]
[Result "1-0"]
[ECO "D52"]
[WhiteElo "2398"]
[BlackElo "2521"]
[Annotator "TA"]
[PlyCount "81"]
[EventDate "2022.04.18"]
[EventType "tourn"]
[EventCountry "GRE"]
[SourceTitle "playchess.com"]
[Source "ChessBase"]
[SourceQuality "1"]
[TimeControl "40/5400+30:1800+30"]

{[%evp 13,81,22,41,39,36,23,28,24,25,19,14,25,20,20,29,15,26,21,34,28,64,0,0,0,40,0,16,0,0,0,0,0,0,-10,2,-54,-59,-169,-178,-183,0,-16,-16,-20,0,0,0,0,0,0,12,18,4,3,14,0,33,45,40,24,27,27,27,22,328,331,415,404,1055,1046]} 1. d4 {[%emt 0:00:02]} d5 {[%emt 0:00:06]} 2. c4 {[%emt 0:00:03]} c6 {[%emt 0:00:03]} 3. Nf3 {[%emt 0:00:22]} Nf6 {[%emt 0:00:08][%cal Bg8f6,Bf6d5,Bd5c3][%mdl 32]} 4. Nc3 {[%emt 0:00:06]} e6 {[%emt 0:00:21]} 5. Bg5 {[%emt 0:00:21]} Nbd7 {[%emt 0:02:36]} 6. e3 {[%emt 0:00:10]} Qa5 {[%emt 0:00:18]} 7. cxd5 {[%emt 0:00:25]} Nxd5 {[%emt 0:00:07]} 8. Rc1 $1 {[%emt 0:00:07][%mdl 4] is recently more successful than 8.Qd2. D52: Queen's Gambit Declined: Cambridge Springs Variation.} b6 {[%emt 0:06:13]} 9. Bd3 {[%emt 0:11:51] Black should prevent 0-0.} h6 {[%emt 0:01:11]} 10. Bh4 {[%emt 0:01:29] White has an edge.} Nxc3 $1 {[%emt 0:00:08]} 11. bxc3 {[%emt 0:00:06]} Ba6 {[%emt 0:11:05]} 12. O-O {[%emt 0:05:26]} Bxd3 {[%emt 0:04:30]} 13. Qxd3 {[%emt 0:00:01]} Ba3 {[%emt 0:00:07]} 14. Rb1 {[%emt 0:10:44]} O-O {[%emt 0:08:02]} 15. c4 {[%emt 0:06:35] [#]} Rfb8 $146 {[%emt 0:09:46]} ({Predecessor:} 15... Bd6 16. Qc2 Qh5 17. Rfd1 Rac8 18. c5 Bb8 19. cxb6 axb6 20. e4 Rfe8 {½-½ (47) Indjic,A (2620)-Dreev,A (2670) St Petersburg 2018}) 16. Rfd1 {[%emt 0:12:22]} Bf8 {[%emt 0:00:16]} 17. e4 {[%emt 0:08:26] White is more active.} (17. Qc2 $14) 17... Re8 $11 {[%emt 0:05:17]} 18. e5 {[%emt 0:05:05]} Rac8 {[%emt 0:01:52]} 19. Qe2 {[%emt 0:02:50]} Qa6 {[%emt 0:02:06]} 20. Qc2 {[%emt 0:07:13]} c5 {[%emt 0:11:19]} 21. d5 {[%emt 0:00:05]} exd5 {[%emt 0:01:04]} 22. Qf5 {[%emt 0:08:20]} Qb7 {[%emt 0:09:17]} 23. cxd5 {[%emt 0:01:09]} c4 {[%emt 0:01:14]} 24. e6 {[%emt 0:04:29]} (24. Bg3 $11) 24... Nc5 $15 {[%emt 0:01:02][%cal Rf7e6]} 25. Re1 {[%emt 0:04:00]} (25. e7 $15 Bxe7 26. d6) 25... fxe6 $19 {[%emt 0:02:32]} 26. dxe6 {[%emt 0:00:07] [#]} Be7 $2 {[%emt 0:04:25]} ({Better is} 26... Nxe6 $1 $19 {[%mdl 512] And now ...Qf7 would win.} 27. Rbc1 {[#]} (27. Rxe6 Qd7 $17) (27. Bg3 Nc5) 27... Ba3 $1) 27. Bxe7 {[%emt 0:03:33]} Qxe7 {[%emt 0:02:41]} 28. Nd4 {[%emt 0:02:23]} Qf6 {[%emt 0:11:37]} 29. Qxf6 {[%emt 0:04:37]} gxf6 {[%emt 0:00:02]} 30. Nf5 $36 {[%emt 0:01:08][%mdl 2048] White is pushing.} Rc6 {[%emt 0:00:07] Against Nd6} (30... Nxe6 31. Nd6 Ng7 32. Rxe8+ (32. Nxc8 Rxc8 33. Re7 a5 $18) (32. Nxe8 Nxe8 33. Re7 Nc7 $16) 32... Rxe8 33. Nxe8 Nxe8 34. Rd1 $18) 31. e7 {[%emt 0:00:06]} ({But not} 31. Nxh6+ Kf8 32. e7+ Rxe7 33. Rxe7 Kxe7 $11) 31... Kf7 {[%emt 0:02:06]} 32. g4 {[%emt 0:01:03]} Kg6 {[%emt 0:02:31]} 33. Rbd1 {[%emt 0:00:47] Hoping for Rd8.} Nd3 $1 {[%emt 0:00:10]} 34. Re4 {[%emt 0:00:15]} c3 {[%emt 0:02:26] Threatens to win with ...c2.} 35. Rxd3 {[%emt 0:00:21]} c2 {[%emt 0:00:02]} 36. Re1 {[%emt 0:00:00] aiming for Rc1.} ({Worse is} 36. Nh4+ Kf7 37. Re1 c1=Q 38. Rxc1 Rxc1+ 39. Kg2 Rxe7 $17) 36... c1=Q {[%emt 0:00:07]} 37. Rxc1 {[%emt 0:00:03]} Rxc1+ {[%emt 0:00:05]} 38. Kg2 {[%emt 0:00:01] Strongly threatening Re3.} Rc7 $2 {[%emt 0:01:15][%mdl 8192]} (38... Re1 $1 $11 {and Black is okay.}) 39. Rh3 $18 {[%emt 0:00:29]} Kf7 {[%emt 0:01:14]} 40. Rxh6 {[%emt 0:00:00]} Rg8 {[%emt 0:00:00]} (40... Rcc8 $142 41. Nd6+ Kxe7) 41. Rh7+ {[%emt 0:01:42] Never resign too early!  Weighted Error Value: White=0.13 (very precise) /Black=0.31} 1-0

[Event "8th Fischer Heraklion-GM 2022"]
[Site "Heraklion"]
[Date "2022.05.02"]
[Round "7.2"]
[White "Kapnisis, Spyridon"]
[Black "Nikolaidis, Ioannis"]
[Result "1/2-1/2"]
[ECO "C92"]
[WhiteElo "2450"]
[BlackElo "2536"]
[Annotator "TA"]
[PlyCount "24"]
[EventDate "2022.04.18"]
[EventType "tourn"]
[EventCountry "GRE"]
[SourceTitle "playchess.com"]
[Source "ChessBase"]
[SourceQuality "1"]
[TimeControl "40/5400+30:1800+30"]

{[%evp 23,24,0,35]} 1. e4 {[%emt 0:00:03]} e5 {[%emt 0:00:43]} 2. Nf3 {[%emt 0:00:06]} Nc6 {[%emt 0:00:06]} 3. Bb5 {[%emt 0:00:06]} a6 {[%emt 0:00:12]} 4. Ba4 {[%emt 0:00:04]} Nf6 {[%emt 0:00:09]} 5. O-O {[%emt 0:00:07]} Be7 {[%emt 0:00:06]} 6. Re1 {[%emt 0:00:06]} b5 {[%emt 0:00:05]} 7. Bb3 {[%emt 0:00:05]} d6 {[%emt 0:00:06]} 8. c3 {[%emt 0:00:05]} O-O {[%emt 0:00:08]} 9. h3 {[%emt 0:00:05]} Bb7 {[%emt 0:00:08]} 10. d4 {[%emt 0:00:06]} Re8 {[%emt 0:00:06] [#]} 11. Ng5 $146 {[%emt 0:00:04]} ({Predecessor:} 11. Nbd2 Bf8 12. a4 h6 13. Bc2 Nb8 14. Bd3 Nbd7 15. axb5 exd4 16. cxd4 axb5 17. Rxa8 Qxa8 18. Bxb5 Bxe4 19. Nxe4 Rxe4 20. Be3 Nb6 21. Qc2 Re7 22. Bc6 {½-½ (50) So,W (2778)-Predke,A (2682) Berlin 2022}) 11... Rf8 {[%emt 0:00:04]} 12. Nf3 {[%emt 0:00:06]} Re8 {[%emt 0:00:03]} 1/2-1/2